fUSD/lending_fUSD_20240724
["ID","MTS","AMOUNT","RATE_DAILY","PERIOD"]
[333096445,1721861468799,-500.0,0.00010958,2]
[333096446,1721861468809,-812.37,0.00010958,2]
[333096447,1721861468819,-500.0,0.00010958,2]
[333096448,1721861468829,-1862.85,0.00010958,2]
[333096449,1721861468838,-500.0,0.00010958,2]
[333096450,1721861468847,-500.0,0.00010958,2]
[333096451,1721861468857,-1862.85,0.00010958,2]
[333096452,1721861468866,-403.00455979,0.00010958,2]
[333096453,1721861468875,-500.0,0.00010958,2]
[333096454,1721861468885,-500.0,0.00010958,2]
[333096455,1721861468894,-500.0,0.00010958,2]
[333096456,1721861468903,-325.73,0.00010958,2]
[333096457,1721861468914,-500.0,0.00010958,2]
[333096458,1721861468923,-500.0,0.00010958,2]
[333096459,1721861468933,-500.0,0.00010958,2]
[333096460,1721861468945,-500.0,0.00010958,2]
[333096461,1721861468955,-500.0,0.00010958,2]
[333096462,1721861468964,-500.0,0.00010958,2]
[333096463,1721861468973,-500.0,0.00010958,2]
[333096464,1721861468982,-500.0,0.00010958,2]
[333096465,1721861468991,-500.0,0.00010958,2]
[333096466,1721861469000,-500.0,0.00010958,2]
[333096467,1721861469009,-500.0,0.00010958,2]
[333096468,1721861469019,-500.0,0.00010958,2]
[333096469,1721861469029,-500.0,0.00010958,2]
[333096470,1721861469038,-500.0,0.00010958,2]
[333096471,1721861469048,-500.0,0.00010958,2]
[333096472,1721861469057,-515.69548002,0.00010958,2]
[333096473,1721861469067,-500.0,0.00010958,2]
[333096474,1721861469076,-500.0,0.00010958,2]
[333096475,1721861469086,-500.0,0.00010958,2]
[333096476,1721861469095,-500.0,0.00010958,2]
[333096477,1721861469105,-500.0,0.00010958,2]
[333096478,1721861469114,-500.0,0.00010958,2]
[333096479,1721861469123,-509.37003192,0.00010958,2]
[333096480,1721861469132,-500.0,0.00010958,2]
[333096481,1721861469141,-500.0,0.00010958,2]
[333096482,1721861469150,-500.0,0.00010958,2]
[333096483,1721861469162,-500.0,0.00010958,2]
[333096484,1721861469176,-500.0,0.00010958,2]
[333096485,1721861469185,-526.69106168,0.00010958,2]
[333096486,1721861469195,-500.0,0.00010958,2]
[333096487,1721861469204,-500.0,0.00010958,2]
[333096488,1721861469216,-500.0,0.00010958,2]
[333096489,1721861469225,-500.0,0.00010958,2]
[333096490,1721861469235,-500.0,0.00010958,2]
[333096491,1721861469245,-489.38033732,0.00010958,2]
[333096492,1721861469255,-500.0,0.00010958,2]
[333096493,1721861469264,-500.0,0.00010958,2]
[333096494,1721861469274,-500.0,0.00010958,2]
[333096495,1721861469283,-500.0,0.00010958,2]
[333096496,1721861469292,-500.0,0.00010958,2]
[333096497,1721861469301,-500.0,0.00010958,2]
[333096498,1721861469311,-500.0,0.00010958,2]
[333096499,1721861469320,-500.0,0.00010958,2]
[333096500,1721861469329,-500.0,0.00010958,2]
[333096501,1721861469339,-500.0,0.00010958,2]
[333096502,1721861469349,-500.0,0.00010958,2]
[333096503,1721861469358,-500.0,0.00010958,2]
[333096504,1721861469368,-500.0,0.00010958,2]
[333096505,1721861469378,-500.0,0.00010958,2]
[333096506,1721861469387,-500.0,0.00010958,2]
[333096507,1721861469396,-500.0,0.00010958,2]
[333096508,1721861469406,-500.0,0.00010958,2]
[333096509,1721861469417,-500.0,0.00010958,2]
[333096510,1721861469428,-500.0,0.00010958,2]
[333096511,1721861469437,-500.0,0.00010958,2]
[333096512,1721861469447,-556.86240195,0.00010958,2]
[333096513,1721861469457,-500.0,0.00010958,2]
[333096514,1721861469466,-500.0,0.00010958,2]
[333096515,1721861469475,-500.0,0.00010958,2]
[333096516,1721861469483,-500.0,0.00010958,2]
[333096517,1721861469493,-500.0,0.00010958,2]
[333096518,1721861469503,-532.86,0.00010958,2]
[333096519,1721861469512,-619.61667248,0.00010958,2]
[333096520,1721861469521,-500.0,0.00010958,2]
[333096521,1721861469530,-500.0,0.00010958,2]
[333096522,1721861469539,-500.0,0.00010958,2]
[333096523,1721861469548,-312.18,0.00010958,2]
[333096524,1721861469558,-500.0,0.00010958,2]
[333096525,1721861469568,-500.0,0.00010958,2]
[333096526,1721861469578,-500.0,0.00010958,2]
[333096527,1721861469588,-500.0,0.00010958,2]
[333096528,1721861469598,-209.29815931,0.00010958,2]
[333096529,1721861469607,-500.0,0.00010958,2]
[333096530,1721861469616,-500.0,0.00010958,2]
[333096531,1721861469626,-500.0,0.00010958,2]
[333096532,1721861469635,-4841.6,0.00010958,2]
[333096533,1721861469644,-500.0,0.00010958,2]
[333096534,1721861469654,-4841.6,0.00010958,2]
[333096535,1721861469664,-500.0,0.00010958,2]
[333096536,1721861469674,-500.0,0.00010958,2]
[333096537,1721861469683,-4841.6,0.00010958,2]
[333096538,1721861469693,-500.0,0.00010958,2]
[333096539,1721861469703,-500.0,0.00010958,2]
[333096540,1721861469713,-4841.6,0.00010958,2]
[333096541,1721861469723,-500.0,0.00010958,2]
[333096542,1721861469732,-537.02687202,0.00010958,2]
[333096543,1721861469741,-4841.6,0.00010958,2]
[333096544,1721861469752,-500.0,0.00010958,2]
[333096545,1721861469761,-500.0,0.00010958,2]
[333096546,1721861469770,-500.0,0.00010958,2]
[333096547,1721861469780,-500.0,0.00010958,2]
[333096548,1721861469790,-500.0,0.00010958,2]
[333096549,1721861469799,-4841.6,0.00010958,2]
[333096550,1721861469809,-500.0,0.00010958,2]
[333096551,1721861469819,-500.0,0.00010958,2]
[333096552,1721861469828,-4841.6,0.00010958,2]
[333096553,1721861469837,-500.0,0.00010958,2]
[333096554,1721861469847,-500.0,0.00010958,2]
[333096555,1721861469856,-500.0,0.00010958,2]
[333096556,1721861469866,-4841.6,0.00010958,2]
[333096557,1721861469875,-436.33,0.00010958,2]
[333096558,1721861469884,-634.85852983,0.00010958,2]
[333096559,1721861469893,-4841.6,0.00010958,2]
[333096560,1721861469903,-500.0,0.00010958,2]
[333096561,1721861469914,-500.0,0.00010958,2]
[333096562,1721861469924,-512.36,0.00010958,2]
[333096563,1721861469933,-500.0,0.00010958,2]
[333096564,1721861469943,-4841.6,0.00010958,2]
[333096565,1721861469952,-500.0,0.00010958,2]
[333096566,1721861469962,-500.0,0.00010958,2]
[333096567,1721861469971,-500.0,0.00010958,2]
[333096568,1721861469982,-4841.6,0.00010958,2]
[333096569,1721861469992,-500.0,0.00010958,2]
[333096570,1721861470002,-500.0,0.00010958,2]
[333096571,1721861470012,-500.0,0.00010958,2]
[333096572,1721861470021,-500.0,0.00010958,2]
[333096573,1721861470031,-500.0,0.00010958,2]
[333096574,1721861470041,-500.0,0.00010958,2]
[333096575,1721861470050,-500.0,0.00010958,2]
[333096576,1721861470060,-500.0,0.00010958,2]
[333096577,1721861470070,-500.0,0.00010958,2]
[333096578,1721861470080,-500.0,0.00010958,2]
[333096579,1721861470090,-500.0,0.00010958,2]
[333096580,1721861470099,-500.0,0.00010958,2]
[333096581,1721861470109,-500.0,0.00010958,2]
[333096582,1721861470119,-500.0,0.00010958,2]
[333096583,1721861470130,-500.0,0.00010958,2]
[333096584,1721861470140,-500.0,0.00010958,2]
[333096585,1721861470150,-500.0,0.00010958,2]
[333096586,1721861470160,-500.0,0.00010958,2]
[333096587,1721861470173,-313.67,0.00010958,2]
[333096588,1721861470182,-500.0,0.00010958,2]
[333096589,1721861470192,-500.0,0.00010958,2]
[333096590,1721861470201,-500.0,0.00010958,2]
[333096591,1721861470214,-500.0,0.00010958,2]
[333096592,1721861470223,-500.0,0.00010958,2]
[333096593,1721861470233,-500.0,0.00010958,2]
[333096594,1721861470243,-500.0,0.00010958,2]
[333096595,1721861470254,-500.0,0.00010958,2]
[333096596,1721861470263,-500.0,0.00010958,2]
[333096597,1721861470273,-500.0,0.00010958,2]
[333096598,1721861470282,-500.0,0.00010958,2]
[333096599,1721861470292,-500.0,0.00010958,2]
[333096600,1721861470302,-500.0,0.00010958,2]
[333096601,1721861470312,-500.0,0.00010958,2]
[333096602,1721861470321,-500.0,0.00010958,2]
[333096603,1721861470332,-500.0,0.00010958,2]
[333096604,1721861470342,-500.0,0.00010958,2]
[333096605,1721861470351,-500.0,0.00010958,2]
[333096606,1721861470361,-511.34266646,0.00010958,2]
[333096607,1721861470371,-500.0,0.00010958,2]
[333096608,1721861470381,-304.28,0.00010958,2]
[333096609,1721861470391,-500.0,0.00010958,2]
[333096610,1721861470400,-500.0,0.00010958,2]
[333096611,1721861470409,-442.36913268,0.00010958,2]
[333096612,1721861470421,-500.0,0.00010958,2]
[333096613,1721861470430,-335.73655868,0.00010958,2]
[333096614,1721861470439,-549.15,0.00010958,2]
[333096615,1721861470449,-549.15,0.00010958,2]
[333096616,1721861470459,-549.15,0.00010958,2]
[333096617,1721861470469,-500.0,0.00010958,2]
[333096618,1721861470479,-549.15,0.00010958,2]
[333096619,1721861470488,-549.15,0.00010958,2]
[333096620,1721861470498,-262.26,0.00010958,2]
[333096621,1721861470507,-549.15,0.00010958,2]
[333096622,1721861470517,-549.15,0.00010958,2]
[333096623,1721861470527,-549.15,0.00010958,2]
[333096624,1721861470537,-1004.57,0.00010958,2]
[333096625,1721861470547,-549.15,0.00010958,2]
[333096626,1721861470556,-549.15,0.00010958,2]
[333096627,1721861470565,-1004.57,0.00010958,2]
[333096628,1721861470575,-1004.57,0.00010958,2]
[333096629,1721861470584,-549.15,0.00010958,2]
[333096630,1721861470594,-1004.57,0.00010958,2]
[333096631,1721861470604,-1004.57,0.00010958,2]
[333096632,1721861470614,-1004.57,0.00010958,2]
[333096633,1721861470623,-1004.57,0.00010958,2]
[333096634,1721861470632,-1004.57,0.00010958,2]
[333096635,1721861470642,-539.24512319,0.00010958,2]
[333096636,1721861470651,-1004.57,0.00010958,2]
[333096637,1721861470660,-1004.57,0.00010958,2]
[333096638,1721861470671,-1004.57,0.00010958,2]
[333096639,1721861470681,-635.0,0.00010958,2]
[333096640,1721861470690,-512.54484417,0.00010958,2]
[333096641,1721861470700,-250.0,0.00010959,2]
[333096642,1721861470710,-566.64,0.00010959,2]
[333096643,1721861470720,-7008.92,0.00010959,2]
[333096644,1721861470730,-1500.0,0.00010959,5]
[333096645,1721861470740,-459.6,0.00010959,2]
[333096646,1721861470750,-383.0,0.00010959,2]
[333096647,1721861470759,-319.17,0.00010959,2]
[333096648,1721861470769,-265.97,0.00010959,2]
[333096649,1721861470778,-221.64,0.00010959,2]
[333096650,1721861470787,-184.7,0.00010959,2]
[333096651,1721861470797,-153.92,0.00010959,2]
[333096652,1721861470807,-150.0,0.00010959,2]
[333096653,1721861470817,-769.62,0.00010959,2]
[333096654,1721861470826,-150.0,0.00010967,2]
[333096655,1721861470836,-528.79317229,0.00010978,2]
[333096656,1721861470845,-500.0,0.00010978,2]
[333096657,1721861470854,-500.0,0.00010978,2]
[333096658,1721861470864,-150.0,0.00010978,2]
[333096659,1721861470873,-567.43,0.00010978,2]
[333096660,1721861470883,-500.0,0.00010978,2]
[333096661,1721861470893,-1457.04,0.00010978,2]
[333096662,1721861470903,-765.92,0.00010978,2]
[333096663,1721861470914,-500.0,0.00010978,2]
[333096664,1721861470925,-500.0,0.00010978,2]
[333096665,1721861470935,-500.0,0.00010978,2]
[333096666,1721861470945,-500.0,0.00010978,2]
[333096667,1721861470955,-500.0,0.00010978,2]
[333096668,1721861470965,-500.0,0.00010978,2]
[333096669,1721861470974,-500.0,0.00010978,2]
[333096670,1721861470984,-500.0,0.00010978,2]
[333096671,1721861470993,-759.16,0.00010978,2]
[333096672,1721861471002,-517.46,0.00010978,2]
[333096673,1721861471012,-500.0,0.00010978,2]
[333096674,1721861471023,-500.0,0.00010978,2]
[333096675,1721861471033,-500.0,0.00010978,2]
[333096676,1721861471043,-500.0,0.00010978,2]
[333096677,1721861471054,-500.0,0.00010978,2]
[333096678,1721861471064,-500.0,0.00010978,2]
[333096679,1721861471074,-762.93,0.00010978,2]
[333096680,1721861471083,-500.0,0.00010978,2]
[333096681,1721861471092,-588.43,0.00010978,2]
[333096682,1721861471102,-1097.36055634,0.00010978,2]
[333096683,1721861471724,-1049.71551794,0.00010739,2]
[333096684,1721861471735,-40.16944366,0.00010978,2]
[333096685,1721861471745,-628.01,0.00010978,2]
[333096686,1721861471754,-500.0,0.00010978,2]
[333096687,1721861471764,-500.0,0.00010978,2]
[333096688,1721861471774,-318.50179478,0.00010978,2]
[333096689,1721861782490,164.12,8.219e-05,2]
[333096690,1721861817948,1324.09773323,8.219e-05,2]
[333096691,1721861829036,15145.0,9e-05,2]
[333096692,1721862270373,236.23,9.051e-05,2]
[333096693,1721862271449,390.37,9.051e-05,2]
[333096694,1721862310764,173.79,9.017e-05,2]
[333096695,1721862334983,155.91,8.219e-05,2]
[333096696,1721862348702,3055.42,8.964e-05,2]
[333096697,1721862411642,1047.14,8.954e-05,2]
[333096698,1721862413193,1047.14,8.957e-05,2]
[333096699,1721862413326,1047.14,8.959e-05,2]
[333096700,1721862413732,1047.14,8.961e-05,2]
[333096701,1721862413954,1047.14,8.964e-05,2]
[333096702,1721862414170,1047.14,8.966e-05,2]
[333096703,1721862414373,1047.14,8.968e-05,2]
[333096704,1721862414575,1047.14,8.971e-05,2]
[333096705,1721862414776,1047.14,8.973e-05,2]
[333096706,1721862414983,1047.14,8.976e-05,2]
[333096707,1721862415198,1047.14,8.978e-05,2]
[333096708,1721862415412,1047.14,8.98e-05,2]
[333096709,1721862415634,1047.14,8.983e-05,2]
[333096710,1721862415833,1047.14,8.985e-05,2]
[333096711,1721862416075,1047.14,8.987e-05,2]
[333096712,1721862416305,1047.14,8.99e-05,2]
[333096713,1721862416525,1047.14,8.992e-05,2]
[333096714,1721862416730,1047.14,8.994e-05,2]
[333096715,1721862416924,1047.14,8.997e-05,2]
[333096716,1721862417141,1047.14,8.999e-05,2]
[333096717,1721862428703,23900.0,9e-05,2]
[333096722,1721862457236,8537.91,8.998e-05,2]
[333096723,1721862519823,609.18,8.979e-05,2]
[333096724,1721862549893,250.0,9.01e-05,2]
[333096772,1721862596222,900.96,9.054e-05,2]
[333096785,1721862633418,-336.42,9.06e-05,2]
[333096786,1721862633428,-712.0,9.091e-05,2]
[333096787,1721862633438,-4301.02038356,9.117e-05,2]
[333096788,1721862633448,-1050.0,9.117e-05,2]
[333096789,1721862633458,-192.4,9.14e-05,2]
[333096790,1721862633467,-200.0,9.164e-05,2]
[333096791,1721862633477,-500.0,9.244e-05,2]
[333096792,1721862633487,-160.63322314,9.344e-05,2]
[333096793,1721862633497,-288.0,9.346e-05,2]
[333096794,1721862633507,-703.18298862,9.555e-05,2]
[333096795,1721862633516,-250.0,9.561e-05,2]
[333096796,1721862633525,-259.4259,9.57e-05,2]
[333096797,1721862633535,-3761.0858,9.57e-05,2]
[333096799,1721862633544,-179.33,9.6e-05,2]
[333096801,1721862633554,-351.4042933,9.66e-05,2]
[333096802,1721862633566,-33965.21856696,9.66e-05,2]
[333096804,1721862633575,-150.0,9.669e-05,2]
[333096806,1721862633585,-6730.04,9.67e-05,2]
[333096808,1721862633594,-999.99,9.67e-05,2]
[333096810,1721862633604,-2449.25,9.67e-05,2]
[333096812,1721862633613,-12852.9,9.67e-05,2]
[333096815,1721862633625,-267.0,9.76e-05,2]
[333096817,1721862633635,-150.0,9.863e-05,2]
[333096819,1721862633645,-267.0,9.98e-05,2]
[333096821,1721862633655,-419.93,0.00010055,2]
[333096823,1721862633665,-833.03,0.00010055,2]
[333096825,1721862633675,-153.55968107,0.00010108,2]
[333096827,1721862633684,-420.2,0.00010141,2]
[333096829,1721862633695,-833.71,0.00010141,2]
[333096831,1721862633704,-833.71,0.00010141,2]
[333096832,1721862633717,-420.2,0.00010141,2]
[333096833,1721862633727,-833.71,0.00010141,2]
[333096834,1721862633737,-529.84,0.00010192,2]
[333096835,1721862633747,-267.0,0.000102,2]
[333096836,1721862633756,-712.0,0.00010228,2]
[333096837,1721862633766,-502.09744113,0.00010372,2]
[333096838,1721862633777,-14993.7331,0.00010393,2]
[333096839,1721862633786,-502.09744114,0.00010393,2]
[333096840,1721862633796,-996.0809,0.00010393,2]
[333096841,1721862633806,-988.4685,0.00010393,2]
[333096842,1721862633816,-1000.0,0.00010393,2]
[333096843,1721862633830,-4182.0038,0.00010393,2]
[333096844,1721862633839,-1000.0,0.00010393,2]
[333096845,1721862633850,-2500.0,0.00010393,2]
[333096846,1721862633860,-155.91,0.00010423,2]
[333096847,1721862633870,-267.0,0.0001043,2]
[333096848,1721862633880,-5827.0,0.00010483,2]
[333096849,1721862633890,-5120.0,0.00010483,2]
[333096850,1721862633900,-38351.0,0.00010483,2]
[333096851,1721862633911,-1202.0,0.00010483,2]
[333096852,1721862633921,-1668.0,0.00010483,2]
[333096853,1721862633930,-238834.2932,0.00010493,2]
[333096854,1721862633940,-288.0,0.00010514,2]
[333096855,1721862633951,-206.92832689,0.0001055,2]
[333096856,1721862633960,-151.281,0.00010605,2]
[333096857,1721862633970,-160.04096352,0.0001062,2]
[333096858,1721862633980,-255.0,0.00010635,2]
[333096859,1721862633990,-267.0,0.0001065,2]
[333096860,1721862634000,-362.0,0.00010678,2]
[333096861,1721862634010,-1580.0,0.00010678,2]
[333096862,1721862634020,-1254.0,0.00010678,2]
[333096863,1721862634029,-1829.0,0.00010678,2]
[333096864,1721862634039,-150.0,0.00010678,2]
[333096865,1721862634048,-620.0,0.00010678,2]
[333096866,1721862634059,-398.051,0.00010678,2]
[333096867,1721862634068,-573.892,0.00010678,2]
[333096868,1721862634078,-810.0,0.00010678,2]
[333096869,1721862634088,-310.752,0.00010678,2]
[333096870,1721862634097,-2383.0,0.00010678,2]
[333096871,1721862634107,-1994.0,0.00010678,2]
[333096872,1721862634116,-3273.0,0.00010678,2]
[333096873,1721862634127,-1049.0749448,0.00010739,2]
[333096874,1721862634136,-1073.45577126,0.00010739,2]
[333096875,1721862634146,-500.0,0.00010752,2]
[333096876,1721862634156,-259.6204101,0.00010758,2]
[333096877,1721862634166,-1095.29901243,0.00010758,2]
[333096878,1721862634175,-1043.86202446,0.00010758,2]
[333096879,1721862634185,-29814.6576,0.00010761,2]
[333096880,1721862634194,-3507.861,0.00010761,2]
[333096881,1721862634204,-174.91683322,0.00010858,2]
[333096882,1721862634214,-173.05830402,0.00010858,2]
[333096883,1721862634224,-293.25626387,0.0001086,2]
[333096884,1721862634288,-74974.00329639,0.0001086,2]
[333096885,1721862634301,-25075.44458783,0.0001086,2]
[333096890,1721862638537,-1000.95023006,0.0001086,2]
[333096891,1721862638549,-993.75798772,0.0001086,2]
[333096892,1721862638676,-457.8345374,0.0001086,2]
[333096893,1721862638688,-342.591199,0.0001086,2]
[333096894,1721862638700,-664.3,0.0001086,2]
[333096895,1721862638797,-384.352,0.0001086,2]
[333096896,1721862638808,-325.82,0.0001086,2]
[333096897,1721862638820,-1308.42712,0.0001086,2]
[333097018,1721862640109,-3048.32772882,0.0001086,2]
[333097020,1721862640120,-670.7,0.0001086,2]
[333097023,1721862640133,-91799.23822227,0.0001086,2]
[333097042,1721862640319,-60150.54509491,0.0001086,2]
[333097043,1721862640328,-150.0,0.00010863,2]
[333097046,1721862640338,-267.0,0.0001087,2]
[333097049,1721862640347,-3000.0,0.0001087,2]
[333097052,1721862640356,-162.30891768,0.0001088,2]
[333097055,1721862640366,-178.18574336,0.0001088,2]
[333097057,1721862640375,-500.0,0.00010889,2]
[333097059,1721862640384,-3080.94104871,0.00010899,2]
[333097061,1721862640393,-3080.94104868,0.00010899,2]
[333097063,1721862640402,-3080.94104868,0.00010899,2]
[333097065,1721862640411,-3080.94104868,0.00010899,2]
[333097067,1721862640421,-3080.94104868,0.00010899,2]
[333097068,1721862640430,-3080.94104868,0.00010899,2]
[333097070,1721862640440,-3080.94104868,0.00010899,2]
[333097072,1721862640451,-3080.94104868,0.00010899,2]
[333097075,1721862640461,-3080.94104868,0.00010899,2]
[333097077,1721862640471,-463.06723591,0.000109,2]
[333097078,1721862640479,-291.63656588,0.000109,2]
[333097081,1721862640489,-3080.94104868,0.000109,2]
[333097083,1721862640499,-357.0,0.000109,2]
[333097085,1721862640508,-1000.0,0.000109,2]
[333097087,1721862640517,-178.18574335,0.000109,2]
[333097089,1721862640526,-412.45599061,0.00010909,2]
[333097091,1721862640535,-150.0,0.00010915,2]
[333097092,1721862640545,-3066.98043627,0.00010921,2]
[333097094,1721862640555,-500.0,0.00010958,2]
[333097096,1721862640563,-501.9047918,0.00010958,2]
[333097098,1721862640573,-579.74249721,0.00010958,2]
[333097100,1721862640582,-502.62041187,0.00010958,2]
[333097102,1721862640591,-500.0,0.00010958,2]
[333097104,1721862640600,-312.17152543,0.00010958,2]
[333097106,1721862640609,-648.72499494,0.00010958,2]
[333097108,1721862640619,-500.0,0.00010958,2]
[333097110,1721862640629,-500.0,0.00010958,2]
[333097112,1721862640638,-500.0,0.00010958,2]
[333097114,1721862640648,-342.76,0.00010958,2]
[333097116,1721862640658,-506.25264026,0.00010958,2]
[333097118,1721862640667,-540.59,0.00010958,2]
[333097120,1721862640676,-500.0,0.00010958,2]
[333097122,1721862640686,-500.0,0.00010958,2]
[333097124,1721862640695,-500.0,0.00010958,2]
[333097125,1721862640705,-500.0,0.00010958,2]
[333097127,1721862640717,-500.0,0.00010958,2]
[333097129,1721862640728,-500.0,0.00010958,2]
[333097131,1721862640737,-500.0,0.00010958,2]
[333097133,1721862640746,-500.0,0.00010958,2]
[333097135,1721862640756,-500.0,0.00010958,2]
[333097137,1721862640765,-500.0,0.00010958,2]
[333097139,1721862640774,-500.0,0.00010958,2]
[333097141,1721862640783,-500.0,0.00010958,2]
[333097142,1721862640791,-500.0,0.00010958,2]
[333097144,1721862640801,-255.73115373,0.00010958,2]
[333097146,1721862640810,-500.0,0.00010958,2]
[333097148,1721862640819,-420.54265083,0.00010958,2]
[333097150,1721862640828,-508.04547887,0.00010958,2]
[333097152,1721862640837,-150.0,0.00010958,2]
[333097154,1721862640846,-150.0,0.00010958,2]
[333097168,1721862640986,-280.58,0.00010958,2]
[333097170,1721862640995,-500.0,0.00010958,2]
[333097172,1721862641004,-500.0,0.00010958,2]
[333097174,1721862641013,-500.0,0.00010958,2]
[333097176,1721862641023,-500.0,0.00010958,2]
[333097178,1721862641031,-500.0,0.00010958,2]
[333097180,1721862641041,-500.0,0.00010958,2]
[333097181,1721862641050,-500.0,0.00010958,2]
[333097183,1721862641059,-500.0,0.00010958,2]
[333097185,1721862641068,-500.0,0.00010958,2]
[333097187,1721862641077,-500.0,0.00010958,2]
[333097189,1721862641086,-229.81,0.00010958,2]
[333097190,1721862641096,-343.86035482,0.00010958,2]
[333097192,1721862641105,-508.16709916,0.00010958,2]
[333097194,1721862641114,-502.66488457,0.00010958,2]
[333097196,1721862641124,-176.88,0.00010958,2]
[333097198,1721862641134,-161.48724376,0.00010958,2]
[333097199,1721862641143,-346.70181255,0.00010958,2]
[333097201,1721862641152,-500.0,0.00010958,2]
[333097203,1721862641162,-336.16249184,0.00010958,2]
[333097205,1721862641170,-500.0,0.00010958,2]
[333097207,1721862641180,-500.0,0.00010958,2]
[333097208,1721862641189,-500.0,0.00010958,2]
[333097210,1721862641198,-265.7879492,0.00010958,2]
[333097212,1721862641207,-500.0,0.00010958,2]
[333097214,1721862641217,-500.0,0.00010958,2]
[333097216,1721862641226,-310.37,0.00010958,2]
[333097218,1721862641235,-500.0,0.00010958,2]
[333097219,1721862641245,-408.12,0.00010958,2]
[333097221,1721862641255,-500.0,0.00010958,2]
[333097223,1721862641265,-500.0,0.00010958,2]
[333097225,1721862641274,-500.0,0.00010958,2]
[333097227,1721862641284,-500.0,0.00010958,2]
[333097229,1721862641293,-500.0,0.00010958,2]
[333097231,1721862641303,-500.0,0.00010958,2]
[333097233,1721862641313,-590.31,0.00010958,2]
[333097235,1721862641322,-87.85814949,0.00010958,2]
[333097265,1721862641622,-412.14185051,0.00010958,2]
[333097267,1721862641631,-279.35194673,0.00010958,2]
[333097270,1721862641647,-220.64805327,0.00010958,2]
[333097271,1721862641656,-312.45194673,0.00010958,2]
[333097274,1721862641667,-187.54805327,0.00010958,2]
[333097276,1721862641677,-83.71754587,0.00010958,2]
[333097278,1721862641690,-342.86858571,0.00010958,2]
[333097281,1721862641710,-73.41386842,0.00010958,2]
[333097283,1721862641724,-271.75146478,0.00010958,2]
[333097285,1721862641735,-124.61629682,0.00010958,2]
[333097287,1721862641744,-500.0,0.00010958,2]
[333097289,1721862641754,-500.0,0.00010958,2]
[333097291,1721862641766,-500.0,0.00010958,2]
[333097293,1721862641775,-52.78370318,0.00010958,2]
[333097296,1721862641787,-447.21629682,0.00010958,2]
[333097298,1721862641797,-500.0,0.00010958,2]
[333097300,1721862641807,-544.08986016,0.00010958,2]
[333097302,1721862641816,-500.0,0.00010958,2]
[333097304,1721862641826,-500.0,0.00010958,2]
[333097306,1721862641835,-500.0,0.00010958,2]
[333097308,1721862641845,-500.0,0.00010958,2]
[333097310,1721862641854,-263.81884302,0.00010958,2]
[333097312,1721862641865,-236.18115698,0.00010958,2]
[333097314,1721862641875,-500.0,0.00010958,2]
[333097316,1721862641884,-170.89114302,0.00010958,2]
[333097318,1721862641901,-329.10885698,0.00010958,2]
[333097321,1721862641910,-500.0,0.00010958,2]
[333097323,1721862641920,-500.0,0.00010958,2]
[333097325,1721862641930,-500.0,0.00010958,2]
[333097327,1721862641939,-500.0,0.00010958,2]
[333097328,1721862641949,-500.0,0.00010958,2]
[333097330,1721862641959,-500.0,0.00010958,2]
[333097332,1721862641969,-500.0,0.00010958,2]
[333097334,1721862641978,-500.0,0.00010958,2]